[Event "Titled Tuesday Blitz September 21 2021"]
[White "Zhigalko, Sergei"]
[Black "Perez Gormaz, Matias"]
[WhiteFideId "13502956"]
[BlackFideId "3406342"]
[WhiteElo "2662"]
[BlackElo "2352"]
[Result "1-0"]
[Round "07"]
[TimeControl "180+1"]
[Date "2021.09.21"]
[WhiteClock "0:00:49"]
[BlackClock "0:00:25"]

1. e4 {[%clk 0:03:00]}  c5 {[%clk 0:02:56]} 2. Nf3 {[%clk 0:03:01]}  d6 {[%clk 0:02:56]} 3. d4 {[%clk 0:03:01]}  cxd4 {[%clk 0:02:57]} 4. Qxd4 {[%clk 0:03:02]}  Nf6 {[%clk 0:02:58]} 5. Nc3 {[%clk 0:03:02]}  Nc6 {[%clk 0:02:58]} 6. Bb5 {[%clk 0:03:02]}  Bd7 {[%clk 0:02:58]} 7. Bxc6 {[%clk 0:03:02]}  Bxc6 {[%clk 0:02:59]} 8. Bg5 {[%clk 0:03:03]}  e6 {[%clk 0:02:59]} 9. O-O-O {[%clk 0:03:03]}  Be7 {[%clk 0:03:00]} 10. Rhe1 {[%clk 0:03:03]}  O-O {[%clk 0:02:59]} 11. Kb1 {[%clk 0:03:03]}  Qa5 {[%clk 0:02:28]} 12. Qd2 {[%clk 0:03:02]}  Qa6 {[%clk 0:02:22]} 13. Nd4 {[%clk 0:03:02]}  Rac8 {[%clk 0:02:17]} 14. f3 {[%clk 0:03:03]}  Rfd8 {[%clk 0:02:12]} 15. g4 {[%clk 0:03:02]}  Be8 {[%clk 0:02:10]} 16. Nce2 {[%clk 0:03:01]}  h6 {[%clk 0:02:03]} 17. Be3 {[%clk 0:02:46]}  d5 {[%clk 0:02:00]} 18. e5 {[%clk 0:02:44]}  Nd7 {[%clk 0:02:01]} 19. Bf4 {[%clk 0:02:16]}  b5 {[%clk 0:01:39]} 20. Ng3 {[%clk 0:02:11]}  Nb6 {[%clk 0:01:21]} 21. Nh5 {[%clk 0:01:56]}  Nc4 {[%clk 0:01:09]} 22. Qc1 {[%clk 0:01:56]}  Bf8 {[%clk 0:00:25]} 23. Rg1 {[%clk 0:00:49]} 1-0


[Site "https://www.chess.com"]

[Event "Titled Tuesday Blitz September 21 2021"]
[White "Zubov, Alexander"]
[Black "Babazada, Khazar"]
[WhiteFideId "14109409"]
[BlackFideId "13413554"]
[WhiteElo "2740"]
[BlackElo "2315"]
[Result "0-1"]
[Round "07"]
[TimeControl "180+1"]
[Date "2021.09.21"]
[WhiteClock "0:00:48"]
[BlackClock "0:00:15"]

1. e4 {[%clk 0:03:00]}  g6 {[%clk 0:03:00]} 2. d4 {[%clk 0:03:01]}  Bg7 {[%clk 0:03:00]} 3. Nc3 {[%clk 0:03:01]}  c6 {[%clk 0:03:01]} 4. h3 {[%clk 0:02:52]}  d5 {[%clk 0:03:01]} 5. Nf3 {[%clk 0:02:53]}  dxe4 {[%clk 0:03:01]} 6. Nxe4 {[%clk 0:02:53]}  Nf6 {[%clk 0:03:02]} 7. Ng3 {[%clk 0:02:53]}  O-O {[%clk 0:03:02]} 8. Bc4 {[%clk 0:02:53]}  c5 {[%clk 0:02:52]} 9. dxc5 {[%clk 0:02:48]}  Qa5+ {[%clk 0:02:51]} 10. c3 {[%clk 0:02:48]}  Qxc5 {[%clk 0:02:51]} 11. Bb3 {[%clk 0:02:49]}  Nc6 {[%clk 0:02:47]} 12. O-O {[%clk 0:02:48]}  Bf5 {[%clk 0:02:43]} 13. Be3 {[%clk 0:02:46]}  Qa5 {[%clk 0:02:43]} 14. Qe2 {[%clk 0:02:43]}  Rad8 {[%clk 0:02:32]} 15. Nxf5 {[%clk 0:02:40]}  Qxf5 {[%clk 0:02:30]} 16. Nd4 {[%clk 0:02:40]}  Nxd4 {[%clk 0:01:44]} 17. Bxd4 {[%clk 0:02:38]}  Nd5 {[%clk 0:01:27]} 18. Bxa7 {[%clk 0:02:17]}  Nf4 {[%clk 0:01:13]} 19. Qf3 {[%clk 0:01:57]}  e5 {[%clk 0:00:25]} 20. Be3 {[%clk 0:01:50]}  Bh6 {[%clk 0:00:25]} 21. Rad1 {[%clk 0:01:26]}  e4 {[%clk 0:00:23]} 22. Qg4 {[%clk 0:01:04]}  Qxg4 {[%clk 0:00:15]} 23. hxg4 {[%clk 0:00:48]}  Kg7 {[%clk 0:00:15]} 0-1


[Site "https://www.chess.com"]

[Event "Titled Tuesday Blitz September 21 2021"]
[White "Andreikin, Dmitry"]
[Black "Deac, Bogdan-Daniel"]
[WhiteFideId "4158814"]
[BlackFideId "1226380"]
[WhiteElo "2736"]
[BlackElo "2605"]
[Result "0-1"]
[Round "08"]
[TimeControl "180+1"]
[Date "2021.09.21"]
[WhiteClock "0:00:07"]
[BlackClock "0:00:14"]

1. d4 {[%clk 0:00:51]}  d5 {[%clk 0:02:42]} 2. Nf3 {[%clk 0:00:51]}  Nf6 {[%clk 0:02:39]} 3. c4 {[%clk 0:00:51]}  e6 {[%clk 0:02:34]} 4. Nc3 {[%clk 0:00:51]}  dxc4 {[%clk 0:02:33]} 5. e4 {[%clk 0:00:51]}  Bb4 {[%clk 0:02:32]} 6. Bxc4 {[%clk 0:00:51]}  Nxe4 {[%clk 0:02:32]} 7. O-O {[%clk 0:00:51]}  Nf6 {[%clk 0:02:32]} 8. Bg5 {[%clk 0:00:51]}  O-O {[%clk 0:02:31]} 9. Qe2 {[%clk 0:00:50]}  Nbd7 {[%clk 0:02:29]} 10. Rad1 {[%clk 0:00:50]}  Nb6 {[%clk 0:02:29]} 11. Bd3 {[%clk 0:00:49]}  Be7 {[%clk 0:02:28]} 12. h4 {[%clk 0:00:43]}  Bd7 {[%clk 0:02:25]} 13. Ne5 {[%clk 0:00:40]}  Bc6 {[%clk 0:02:23]} 14. Bb1 {[%clk 0:00:40]}  Nfd5 {[%clk 0:01:58]} 15. Qh5 {[%clk 0:00:35]}  f5 {[%clk 0:01:41]} 16. Rfe1 {[%clk 0:00:33]}  Be8 {[%clk 0:01:33]} 17. Qf3 {[%clk 0:00:27]}  Bxg5 {[%clk 0:01:29]} 18. hxg5 {[%clk 0:00:28]}  Qxg5 {[%clk 0:01:29]} 19. a3 {[%clk 0:00:24]}  Bh5 {[%clk 0:01:28]} 20. Qd3 {[%clk 0:00:19]}  Nf4 {[%clk 0:01:17]} 21. Qg3 {[%clk 0:00:17]}  Qxg3 {[%clk 0:01:13]} 22. fxg3 {[%clk 0:00:18]}  Bxd1 {[%clk 0:01:11]} 23. gxf4 {[%clk 0:00:18]}  Bb3 {[%clk 0:01:10]} 24. Kf2 {[%clk 0:00:14]}  Rad8 {[%clk 0:01:06]} 25. Nf3 {[%clk 0:00:14]}  h6 {[%clk 0:00:57]} 26. g3 {[%clk 0:00:13]}  Rfe8 {[%clk 0:00:54]} 27. Bd3 {[%clk 0:00:12]}  a6 {[%clk 0:00:50]} 28. Bf1 {[%clk 0:00:11]}  Bd5 {[%clk 0:00:46]} 29. Ne5 {[%clk 0:00:11]}  Nd7 {[%clk 0:00:42]} 30. Ng6 {[%clk 0:00:07]}  Nf6 {[%clk 0:00:40]} 31. Ne5 {[%clk 0:00:07]}  Be4 {[%clk 0:00:36]} 32. Ke3 {[%clk 0:00:05]}  Nd5+ {[%clk 0:00:33]} 33. Nxd5 {[%clk 0:00:06]}  Rxd5 {[%clk 0:00:31]} 34. Bc4 {[%clk 0:00:04]}  Rd6 {[%clk 0:00:31]} 35. b4 {[%clk 0:00:04]}  Red8 {[%clk 0:00:29]} 36. Rd1 {[%clk 0:00:04]}  Bd5 {[%clk 0:00:29]} 37. Be2 {[%clk 0:00:04]}  Bc6 {[%clk 0:00:23]} 38. Bh5 {[%clk 0:00:04]}  Ba4 {[%clk 0:00:20]} 39. Rd2 {[%clk 0:00:04]}  Be8 {[%clk 0:00:20]} 40. Bf3 {[%clk 0:00:04]}  c6 {[%clk 0:00:17]} 41. Nc4 {[%clk 0:00:05]}  R6d7 {[%clk 0:00:16]} 42. Ne5 {[%clk 0:00:05]}  Rc7 {[%clk 0:00:16]} 43. a4 {[%clk 0:00:06]}  b6 {[%clk 0:00:16]} 44. Rc2 {[%clk 0:00:06]}  Rdc8 {[%clk 0:00:16]} 45. Nc4 {[%clk 0:00:06]}  c5 {[%clk 0:00:14]} 46. Nxb6 {[%clk 0:00:06]}  cxd4+ {[%clk 0:00:14]} 47. Kxd4 {[%clk 0:00:06]}  Rxc2 {[%clk 0:00:14]} 48. Nxc8 {[%clk 0:00:06]}  Rxc8 {[%clk 0:00:15]} 49. Bb7 {[%clk 0:00:05]}  Rb8 {[%clk 0:00:15]} 50. Bxa6 {[%clk 0:00:05]}  Rxb4+ {[%clk 0:00:16]} 51. Ke5 {[%clk 0:00:06]}  Re4+ {[%clk 0:00:15]} 52. Kd6 {[%clk 0:00:06]}  Bxa4 {[%clk 0:00:15]} 53. Bb7 {[%clk 0:00:06]}  Re3 {[%clk 0:00:15]} 54. Ke7 {[%clk 0:00:05]}  Bb3 {[%clk 0:00:15]} 55. Bc6 {[%clk 0:00:05]}  Rxg3 {[%clk 0:00:14]} 56. Be8 {[%clk 0:00:05]}  Bd5 {[%clk 0:00:14]} 57. Bh5 {[%clk 0:00:05]}  Kh8 {[%clk 0:00:14]} 58. Kf8 {[%clk 0:00:05]}  g5 {[%clk 0:00:13]} 59. fxg5 {[%clk 0:00:05]}  hxg5 {[%clk 0:00:14]} 60. Bf7 {[%clk 0:00:05]}  f4 {[%clk 0:00:14]} 61. Bg6 {[%clk 0:00:05]}  f3 {[%clk 0:00:14]} 62. Kf7 {[%clk 0:00:05]}  f2 {[%clk 0:00:14]} 63. Ke7 {[%clk 0:00:05]}  f1=Q {[%clk 0:00:14]} 64. Be8 {[%clk 0:00:06]}  Qf4 {[%clk 0:00:14]} 65. Bd7 {[%clk 0:00:06]}  Qc7 {[%clk 0:00:13]} 66. Kf8 {[%clk 0:00:06]}  Rf3+ {[%clk 0:00:13]} 67. Ke7 {[%clk 0:00:06]}  Qc5+ {[%clk 0:00:13]} 68. Kd8 {[%clk 0:00:06]}  Rf8+ {[%clk 0:00:13]} 69. Be8 {[%clk 0:00:06]}  Qd6+ {[%clk 0:00:14]} 70. Kc8 {[%clk 0:00:07]}  Rxe8# {[%clk 0:00:14]} 0-1


[Site "https://www.chess.com"]

[Event "Titled Tuesday Blitz September 21 2021"]
[White "Aradhya, Garg"]
[Black "Pourkashiyan, Atousa"]
[WhiteFideId "25006746"]
[BlackFideId "12502014"]
[WhiteElo "2146"]
[BlackElo "2285"]
[Result "1-0"]
[Round "08"]
[TimeControl "180+1"]
[Date "2021.09.21"]
[WhiteClock "0:00:12"]
[BlackClock "0:00:25"]

1. d4 {[%clk 0:00:34]}  Nf6 {[%clk 0:02:41]} 2. c4 {[%clk 0:00:33]}  e6 {[%clk 0:02:41]} 3. Nf3 {[%clk 0:00:33]}  d5 {[%clk 0:02:40]} 4. Nc3 {[%clk 0:00:34]}  Be7 {[%clk 0:02:40]} 5. Bf4 {[%clk 0:00:33]}  O-O {[%clk 0:02:40]} 6. a3 {[%clk 0:00:34]}  Nbd7 {[%clk 0:02:38]} 7. Nb5 {[%clk 0:00:33]}  c6 {[%clk 0:02:36]} 8. Bc7 {[%clk 0:00:32]}  Qe8 {[%clk 0:02:31]} 9. Nd6 {[%clk 0:00:32]}  Bxd6 {[%clk 0:02:31]} 10. Bxd6 {[%clk 0:00:33]}  dxc4 {[%clk 0:02:31]} 11. e3 {[%clk 0:00:33]}  Nb6 {[%clk 0:02:31]} 12. Be2 {[%clk 0:00:34]}  Ne4 {[%clk 0:01:51]} 13. Bxf8 {[%clk 0:00:31]}  Qxf8 {[%clk 0:01:52]} 14. O-O {[%clk 0:00:31]}  c3 {[%clk 0:01:52]} 15. b4 {[%clk 0:00:26]}  a5 {[%clk 0:01:30]} 16. Qc2 {[%clk 0:00:25]}  f5 {[%clk 0:01:26]} 17. Bd3 {[%clk 0:00:21]}  axb4 {[%clk 0:01:19]} 18. axb4 {[%clk 0:00:22]}  Rxa1 {[%clk 0:01:18]} 19. Rxa1 {[%clk 0:00:23]}  Qxb4 {[%clk 0:01:19]} 20. Bxe4 {[%clk 0:00:23]}  fxe4 {[%clk 0:01:19]} 21. Qxe4 {[%clk 0:00:24]}  Qb2 {[%clk 0:01:16]} 22. Qb1 {[%clk 0:00:19]}  Nc4 {[%clk 0:01:00]} 23. Ng5 {[%clk 0:00:14]}  g6 {[%clk 0:00:43]} 24. Ne4 {[%clk 0:00:13]}  Kf7 {[%clk 0:00:34]} 25. Qc1 {[%clk 0:00:10]}  c2 {[%clk 0:00:23]} 26. Nd6+ {[%clk 0:00:09]}  Ke7 {[%clk 0:00:20]} 27. Nxc4 {[%clk 0:00:09]}  Qxc1+ {[%clk 0:00:20]} 28. Rxc1 {[%clk 0:00:09]}  e5 {[%clk 0:00:21]} 29. Nxe5 {[%clk 0:00:09]}  Bf5 {[%clk 0:00:21]} 30. g4 {[%clk 0:00:09]}  Be4 {[%clk 0:00:21]} 31. f3 {[%clk 0:00:09]}  Bd5 {[%clk 0:00:21]} 32. Rxc2 {[%clk 0:00:08]}  b5 {[%clk 0:00:22]} 33. Nxc6+ {[%clk 0:00:08]}  Kd6 {[%clk 0:00:22]} 34. Ne5 {[%clk 0:00:08]}  Bb3 {[%clk 0:00:23]} 35. Rb2 {[%clk 0:00:07]}  Ba4 {[%clk 0:00:23]} 36. e4 {[%clk 0:00:08]}  Ke6 {[%clk 0:00:23]} 37. Kf2 {[%clk 0:00:08]}  h5 {[%clk 0:00:24]} 38. Ke3 {[%clk 0:00:09]}  hxg4 {[%clk 0:00:24]} 39. fxg4 {[%clk 0:00:10]}  g5 {[%clk 0:00:25]} 40. Nf3 {[%clk 0:00:10]}  Kf6 {[%clk 0:00:25]} 41. d5 {[%clk 0:00:10]}  Kg6 {[%clk 0:00:26]} 42. e5 {[%clk 0:00:10]}  Bd1 {[%clk 0:00:26]} 43. Rxb5 {[%clk 0:00:08]}  Bxf3 {[%clk 0:00:26]} 44. Rb6+ {[%clk 0:00:09]}  Kf7 {[%clk 0:00:26]} 45. Kxf3 {[%clk 0:00:10]}  Ke7 {[%clk 0:00:26]} 46. Ke4 {[%clk 0:00:11]}  Kd7 {[%clk 0:00:25]} 47. Kf5 {[%clk 0:00:12]}  Kc7 {[%clk 0:00:25]} 48. Rg6 {[%clk 0:00:12]} 1-0


[Site "https://www.chess.com"]

[Event "Titled Tuesday Blitz September 21 2021"]
[White "Babazada, Khazar"]
[Black "Lashkin, Jegor"]
[WhiteFideId "13413554"]
[BlackFideId "13907808"]
[WhiteElo "2315"]
[BlackElo "2293"]
[Result "0-1"]
[Round "08"]
[TimeControl "180+1"]
[Date "2021.09.21"]
[WhiteClock "0:00:15"]
[BlackClock "0:00:09"]

1. e4 {[%clk 0:02:58]}  c5 {[%clk 0:00:48]} 2. Nf3 {[%clk 0:02:56]}  d6 {[%clk 0:00:47]} 3. d4 {[%clk 0:02:56]}  cxd4 {[%clk 0:00:48]} 4. Nxd4 {[%clk 0:02:57]}  Nf6 {[%clk 0:00:47]} 5. Nc3 {[%clk 0:02:57]}  a6 {[%clk 0:00:48]} 6. h3 {[%clk 0:02:56]}  e5 {[%clk 0:00:47]} 7. Nde2 {[%clk 0:02:56]}  h5 {[%clk 0:00:46]} 8. g3 {[%clk 0:02:56]}  Be7 {[%clk 0:00:46]} 9. Bg2 {[%clk 0:02:57]}  Be6 {[%clk 0:00:46]} 10. Bg5 {[%clk 0:02:56]}  Nbd7 {[%clk 0:00:46]} 11. O-O {[%clk 0:02:55]}  O-O {[%clk 0:00:44]} 12. Qd2 {[%clk 0:02:49]}  Rc8 {[%clk 0:00:44]} 13. Rad1 {[%clk 0:02:48]}  b5 {[%clk 0:00:44]} 14. a3 {[%clk 0:02:48]}  Nb6 {[%clk 0:00:43]} 15. Qc1 {[%clk 0:02:42]}  Qc7 {[%clk 0:00:41]} 16. Kh2 {[%clk 0:02:41]}  Qc6 {[%clk 0:00:32]} 17. f4 {[%clk 0:02:38]}  a5 {[%clk 0:00:31]} 18. f5 {[%clk 0:01:39]}  Bc4 {[%clk 0:00:30]} 19. Rf2 {[%clk 0:00:52]}  b4 {[%clk 0:00:28]} 20. Nb1 {[%clk 0:00:51]}  d5 {[%clk 0:00:21]} 21. b3 {[%clk 0:00:36]}  Bxe2 {[%clk 0:00:19]} 22. Rxe2 {[%clk 0:00:37]}  dxe4 {[%clk 0:00:18]} 23. axb4 {[%clk 0:00:33]}  axb4 {[%clk 0:00:18]} 24. Bxe4 {[%clk 0:00:22]}  Nxe4 {[%clk 0:00:18]} 25. Bxe7 {[%clk 0:00:22]}  Rfe8 {[%clk 0:00:18]} 26. Bxb4 {[%clk 0:00:23]}  Ng5 {[%clk 0:00:15]} 27. Qxg5 {[%clk 0:00:22]}  Nd5 {[%clk 0:00:12]} 28. Be1 {[%clk 0:00:19]}  Nf6 {[%clk 0:00:12]} 29. Nc3 {[%clk 0:00:19]}  e4 {[%clk 0:00:11]} 30. Re3 {[%clk 0:00:18]}  Re5 {[%clk 0:00:11]} 31. Qf4 {[%clk 0:00:18]}  Rce8 {[%clk 0:00:11]} 32. Rd4 {[%clk 0:00:18]}  Qc8 {[%clk 0:00:10]} 33. Rc4 {[%clk 0:00:17]}  Qd7 {[%clk 0:00:09]} 34. Rd4 {[%clk 0:00:17]}  Qxd4 {[%clk 0:00:09]} 35. g4 {[%clk 0:00:14]}  hxg4 {[%clk 0:00:09]} 36. hxg4 {[%clk 0:00:15]}  Qxe3 {[%clk 0:00:09]} 0-1


[Site "https://www.chess.com"]

[Event "Titled Tuesday Blitz September 21 2021"]
[White "Coto Mederos, Michel"]
[Black "Lysyj, Igor"]
[WhiteFideId "3508528"]
[BlackFideId "4150120"]
[WhiteElo "2427"]
[BlackElo "2660"]
[Result "0-1"]
[Round "08"]
[TimeControl "180+1"]
[Date "2021.09.21"]
[WhiteClock "0:00:02"]
[BlackClock "0:01:03"]

1. c4 {[%clk 0:00:08]}  b6 {[%clk 0:02:28]} 2. Nc3 {[%clk 0:00:09]}  Bb7 {[%clk 0:02:24]} 3. Nf3 {[%clk 0:00:10]}  Nf6 {[%clk 0:02:21]} 4. g3 {[%clk 0:00:10]}  g6 {[%clk 0:02:17]} 5. Bg2 {[%clk 0:00:11]}  Bg7 {[%clk 0:02:16]} 6. O-O {[%clk 0:00:10]}  O-O {[%clk 0:02:16]} 7. d3 {[%clk 0:00:10]}  c5 {[%clk 0:02:15]} 8. e4 {[%clk 0:00:10]}  Nc6 {[%clk 0:02:15]} 9. h3 {[%clk 0:00:11]}  d6 {[%clk 0:02:14]} 10. Be3 {[%clk 0:00:12]}  Nd7 {[%clk 0:02:14]} 11. Qd2 {[%clk 0:00:12]}  Nde5 {[%clk 0:02:14]} 12. Bh6 {[%clk 0:00:11]}  Nxf3+ {[%clk 0:02:13]} 13. Bxf3 {[%clk 0:00:12]}  Nd4 {[%clk 0:02:12]} 14. Bg2 {[%clk 0:00:11]}  e6 {[%clk 0:02:12]} 15. Bxg7 {[%clk 0:00:10]}  Kxg7 {[%clk 0:02:12]} 16. Ne2 {[%clk 0:00:11]}  Qf6 {[%clk 0:02:12]} 17. Nxd4 {[%clk 0:00:10]}  Qxd4 {[%clk 0:02:12]} 18. Qc3 {[%clk 0:00:11]}  Qxc3 {[%clk 0:02:04]} 19. bxc3 {[%clk 0:00:11]}  e5 {[%clk 0:02:02]} 20. f4 {[%clk 0:00:11]}  f5 {[%clk 0:01:48]} 21. fxe5 {[%clk 0:00:08]}  dxe5 {[%clk 0:01:47]} 22. exf5 {[%clk 0:00:08]}  Bxg2 {[%clk 0:01:47]} 23. f6+ {[%clk 0:00:07]}  Rxf6 {[%clk 0:01:46]} 24. Rxf6 {[%clk 0:00:05]}  Kxf6 {[%clk 0:01:46]} 25. Kxg2 {[%clk 0:00:06]}  Rd8 {[%clk 0:01:45]} 26. Rd1 {[%clk 0:00:06]}  e4 {[%clk 0:01:41]} 27. d4 {[%clk 0:00:05]}  Rc8 {[%clk 0:01:38]} 28. d5 {[%clk 0:00:05]}  Ke5 {[%clk 0:01:37]} 29. Kf2 {[%clk 0:00:05]}  Rf8+ {[%clk 0:01:36]} 30. Ke2 {[%clk 0:00:05]}  a6 {[%clk 0:01:04]} 31. Rf1 {[%clk 0:00:06]}  Rxf1 {[%clk 0:01:03]} 32. Kxf1 {[%clk 0:00:07]}  b5 {[%clk 0:01:03]} 33. cxb5 {[%clk 0:00:02]}  axb5 {[%clk 0:01:03]} 0-1


[Site "https://www.chess.com"]

[Event "Titled Tuesday Blitz September 21 2021"]
[White "Czerw, Dawid"]
[Black "Hambleton, Aman"]
[WhiteFideId "1145746"]
[BlackFideId "2606577"]
[WhiteElo "2075"]
[BlackElo "2552"]
[Result "0-1"]
[Round "08"]
[TimeControl "180+1"]
[Date "2021.09.21"]
[WhiteClock "0:00:01"]
[BlackClock "0:00:06"]

1. d4 {[%clk 0:02:41]}  c6 {[%clk 0:01:42]} 2. c4 {[%clk 0:02:18]}  d5 {[%clk 0:01:24]} 3. Nc3 {[%clk 0:02:05]}  Nf6 {[%clk 0:01:25]} 4. cxd5 {[%clk 0:02:04]}  Bg4 {[%clk 0:01:26]} 5. f3 {[%clk 0:02:01]}  Bh5 {[%clk 0:01:26]} 6. dxc6 {[%clk 0:01:59]}  Nxc6 {[%clk 0:01:27]} 7. e3 {[%clk 0:01:59]}  e6 {[%clk 0:01:27]} 8. Bb5 {[%clk 0:01:59]}  a6 {[%clk 0:01:27]} 9. Bxc6+ {[%clk 0:01:59]}  bxc6 {[%clk 0:01:28]} 10. Nge2 {[%clk 0:01:59]}  Bd6 {[%clk 0:01:28]} 11. e4 {[%clk 0:01:55]}  Be7 {[%clk 0:01:27]} 12. Be3 {[%clk 0:01:54]}  O-O {[%clk 0:01:27]} 13. O-O {[%clk 0:01:51]}  Qb8 {[%clk 0:01:26]} 14. Qc2 {[%clk 0:01:44]}  Rd8 {[%clk 0:01:24]} 15. Rac1 {[%clk 0:01:37]}  Bg6 {[%clk 0:01:25]} 16. Nf4 {[%clk 0:01:34]}  a5 {[%clk 0:01:17]} 17. Nxg6 {[%clk 0:01:32]}  hxg6 {[%clk 0:01:18]} 18. Na4 {[%clk 0:01:30]}  Rc8 {[%clk 0:01:13]} 19. Qf2 {[%clk 0:01:18]}  Nd7 {[%clk 0:01:10]} 20. Rc2 {[%clk 0:01:17]}  Bd6 {[%clk 0:01:10]} 21. g3 {[%clk 0:01:15]}  Qb5 {[%clk 0:01:09]} 22. b3 {[%clk 0:01:13]}  Rc7 {[%clk 0:01:08]} 23. d5 {[%clk 0:01:00]}  cxd5 {[%clk 0:01:04]} 24. Rxc7 {[%clk 0:00:58]}  Bxc7 {[%clk 0:01:05]} 25. Rc1 {[%clk 0:00:44]}  Be5 {[%clk 0:00:54]} 26. f4 {[%clk 0:00:40]}  Bd6 {[%clk 0:00:52]} 27. exd5 {[%clk 0:00:32]}  exd5 {[%clk 0:00:46]} 28. Nc3 {[%clk 0:00:26]}  Qb7 {[%clk 0:00:46]} 29. Rd1 {[%clk 0:00:25]}  Nf6 {[%clk 0:00:44]} 30. Qg2 {[%clk 0:00:25]}  Qe7 {[%clk 0:00:25]} 31. Bf2 {[%clk 0:00:22]}  Ne4 {[%clk 0:00:14]} 32. Nxd5 {[%clk 0:00:21]}  Qe6 {[%clk 0:00:14]} 33. Re1 {[%clk 0:00:19]}  f5 {[%clk 0:00:15]} 34. Rd1 {[%clk 0:00:15]}  Rc8 {[%clk 0:00:08]} 35. Be3 {[%clk 0:00:13]}  Bf8 {[%clk 0:00:05]} 36. Qe2 {[%clk 0:00:13]}  Kh7 {[%clk 0:00:04]} 37. Qd3 {[%clk 0:00:12]}  Rc6 {[%clk 0:00:02]} 38. Bf2 {[%clk 0:00:06]}  Bc5 {[%clk 0:00:01]} 39. Bxc5 {[%clk 0:00:05]}  Rxc5 {[%clk 0:00:02]} 40. Ne3 {[%clk 0:00:05]}  Qc6 {[%clk 0:00:02]} 41. Nc4 {[%clk 0:00:05]}  a4 {[%clk 0:00:02]} 42. Ne5 {[%clk 0:00:05]}  Qc7 {[%clk 0:00:03]} 43. Qd7 {[%clk 0:00:04]}  Qxd7 {[%clk 0:00:02]} 44. Rxd7 {[%clk 0:00:05]}  Rc1+ {[%clk 0:00:02]} 45. Kg2 {[%clk 0:00:06]}  Rc2+ {[%clk 0:00:03]} 46. Kf3 {[%clk 0:00:06]}  Rxa2 {[%clk 0:00:03]} 47. bxa4 {[%clk 0:00:06]}  Ra3+ {[%clk 0:00:03]} 48. Kg2 {[%clk 0:00:06]}  Ra2+ {[%clk 0:00:03]} 49. Kf3 {[%clk 0:00:06]}  Rxa4 {[%clk 0:00:04]} 50. Nf7 {[%clk 0:00:06]}  Ra3+ {[%clk 0:00:03]} 51. Kg2 {[%clk 0:00:06]}  Ra2+ {[%clk 0:00:04]} 52. Kf3 {[%clk 0:00:06]}  Rf2+ {[%clk 0:00:04]} 53. Ke3 {[%clk 0:00:06]}  Rxh2 {[%clk 0:00:02]} 54. Ng5+ {[%clk 0:00:06]}  Nxg5 {[%clk 0:00:02]} 55. fxg5 {[%clk 0:00:07]}  Rg2 {[%clk 0:00:03]} 56. Kf3 {[%clk 0:00:07]}  Rg1 {[%clk 0:00:03]} 57. Kf2 {[%clk 0:00:08]}  Rh1 {[%clk 0:00:03]} 58. Kf3 {[%clk 0:00:07]}  Rh5 {[%clk 0:00:03]} 59. Kf4 {[%clk 0:00:08]}  Rh1 {[%clk 0:00:04]} 60. Kf3 {[%clk 0:00:08]}  Rf1+ {[%clk 0:00:04]} 61. Kg2 {[%clk 0:00:08]}  Rb1 {[%clk 0:00:04]} 62. Kf3 {[%clk 0:00:09]}  Rb4 {[%clk 0:00:05]} 63. Rd1 {[%clk 0:00:02]}  Rg4 {[%clk 0:00:05]} 64. Rh1+ {[%clk 0:00:01]}  Kg8 {[%clk 0:00:05]} 65. Rh4 {[%clk 0:00:01]}  Rxg5 {[%clk 0:00:05]} 66. Rf4 {[%clk 0:00:01]}  Kf7 {[%clk 0:00:05]} 67. Ra4 {[%clk 0:00:02]}  Rh5 {[%clk 0:00:05]} 68. Ra7+ {[%clk 0:00:02]}  Kg8 {[%clk 0:00:05]} 69. Ra6 {[%clk 0:00:03]}  Kh7 {[%clk 0:00:05]} 70. Ra8 {[%clk 0:00:04]}  Rh1 {[%clk 0:00:05]} 71. Ra4 {[%clk 0:00:04]}  Rf1+ {[%clk 0:00:05]} 72. Kg2 {[%clk 0:00:05]}  Re1 {[%clk 0:00:05]} 73. Ra8 {[%clk 0:00:05]}  Re6 {[%clk 0:00:04]} 74. Ra4 {[%clk 0:00:06]}  g5 {[%clk 0:00:04]} 75. Ra5 {[%clk 0:00:06]}  Kg6 {[%clk 0:00:04]} 76. Kf3 {[%clk 0:00:06]}  g4+ {[%clk 0:00:05]} 77. Kg2 {[%clk 0:00:07]}  Kg5 {[%clk 0:00:05]} 78. Kg1 {[%clk 0:00:08]}  Kf6 {[%clk 0:00:05]} 79. Kg2 {[%clk 0:00:08]}  g6 {[%clk 0:00:05]} 80. Ra8 {[%clk 0:00:08]}  Re2+ {[%clk 0:00:05]} 81. Kg1 {[%clk 0:00:08]}  Rb2 {[%clk 0:00:05]} 82. Ra6+ {[%clk 0:00:08]}  Kg5 {[%clk 0:00:05]} 83. Kf1 {[%clk 0:00:08]}  Rb3 {[%clk 0:00:05]} 84. Kg2 {[%clk 0:00:08]}  Rd3 {[%clk 0:00:03]} 85. Kf2 {[%clk 0:00:07]}  Rd5 {[%clk 0:00:03]} 86. Kg2 {[%clk 0:00:07]}  Rd7 {[%clk 0:00:03]} 87. Kf2 {[%clk 0:00:07]}  Rf7 {[%clk 0:00:04]} 88. Kg2 {[%clk 0:00:07]}  Rf6 {[%clk 0:00:05]} 89. Ra8 {[%clk 0:00:06]}  Kh6 {[%clk 0:00:05]} 90. Rh8+ {[%clk 0:00:06]}  Kg7 {[%clk 0:00:05]} 91. Ra8 {[%clk 0:00:07]}  g5 {[%clk 0:00:06]} 92. Ra5 {[%clk 0:00:07]}  Kg6 {[%clk 0:00:06]} 93. Ra8 {[%clk 0:00:06]}  f4 {[%clk 0:00:06]} 94. Rg8+ {[%clk 0:00:06]}  Kf5 {[%clk 0:00:07]} 95. Ra8 {[%clk 0:00:04]}  Re6 {[%clk 0:00:06]} 96. Ra5+ {[%clk 0:00:04]}  Re5 {[%clk 0:00:06]} 97. Ra8 {[%clk 0:00:04]}  Re2+ {[%clk 0:00:05]} 98. Kf1 {[%clk 0:00:04]}  Rb2 {[%clk 0:00:05]} 99. Ra5+ {[%clk 0:00:04]}  Ke4 {[%clk 0:00:05]} 100. Rxg5 {[%clk 0:00:02]}  Kf3 {[%clk 0:00:05]} 101. Ke1 {[%clk 0:00:01]}  Kxg3 {[%clk 0:00:06]} 0-1


[Site "https://www.chess.com"]